bitfinex-derivatives/quotes_BTCF0:USTF0_20210705
["timestamp","ask_amount","ask_price","bid_price","bid_amount"]
[1625489236189,0.24057544,33416.0,33406.0,0.12204148]
[1625489236538,0.24057544,33416.0,33407.0,0.00404132]
[1625489236638,0.24057544,33416.0,33407.0,0.12204132]
[1625489237140,0.24057544,33416.0,33408.0,0.00403516]
[1625489237239,0.24057544,33416.0,33408.0,0.12203516]
[1625489237440,0.24057544,33416.0,33415.0,0.48115088]
[1625489237542,0.24057544,33416.0,33415.0,0.71374088]
[1625489237640,0.24057544,33416.0,33415.0,0.77274088]
[1625489238692,0.24057544,33416.0,33415.0,0.77677625]
[1625489238991,0.24057544,33416.0,33415.0,0.86747625]
[1625489239893,0.24057544,33419.0,33415.0,0.86747625]
[1625489239894,0.24057544,33419.0,33415.0,0.92647625]
[1625489240095,0.24057544,33419.0,33415.0,0.83577625]
[1625489240195,0.24057544,33427.0,33415.0,0.83577625]
[1625489240296,0.24057544,33427.0,33416.0,0.00403514]
[1625489240496,0.24057544,33427.0,33416.0,0.06303514]
[1625489240997,0.24057544,33427.0,33417.0,0.00403495]
[1625489241199,0.24057544,33427.0,33417.0,0.06303495]
[1625489241306,0.24057544,33427.0,33417.0,0.12203495]
[1625489241504,0.24057544,33427.0,33426.0,0.48115088]
[1625489241604,0.24057544,33427.0,33426.0,0.78296088]
[1625489241706,0.24057544,33427.0,33426.0,0.84196088]
[1625489242206,0.24057544,33427.0,33426.0,0.48745457]
[1625489243660,0.24057544,33427.0,33426.0,0.54645457]
[1625489243960,0.24057544,33427.0,33426.0,0.55048944]
[1625489244513,0.24057544,33427.0,33426.0,0.49148944]
[1625489244962,0.24057544,33429.0,33426.0,0.49148944]
[1625489245164,0.24057544,33429.0,33426.0,0.55048944]
[1625489245364,0.24057544,33433.0,33426.0,0.55048944]
[1625489245564,0.24057544,33433.0,33432.0,0.24057544]
[1625489245664,0.24057544,33433.0,33432.0,0.29957544]
[1625489245763,0.24057544,33433.0,33432.0,0.35857544]
[1625489246017,0.34113897,33438.0,33432.0,0.35857544]
[1625489246114,0.34113897,33438.0,33432.0,0.36260989]
[1625489246315,0.34140153,33439.0,33432.0,0.35857544]
[1625489247619,0.34140153,33439.0,33438.0,0.24057544]
[1625489247870,0.34140153,33439.0,33437.0,0.24057544]
[1625489248373,0.34157906,33440.0,33437.0,0.24057544]
[1625489248773,0.34157906,33440.0,33437.0,0.49418544]
[1625489248873,0.34157906,33440.0,33437.0,0.61218544]
[1625489248973,0.5825589,33443.0,33437.0,0.61218544]
[1625489249377,0.5825589,33443.0,33438.0,0.00403319]
[1625489249474,0.5825589,33443.0,33438.0,0.12203319]
[1625489249574,0.24057544,33443.0,33442.0,0.48115088]
[1625489249875,0.24057544,33443.0,33442.0,0.48518402]
[1625489250678,0.24057544,33443.0,33442.0,0.48115088]
[1625489250979,0.5832644,33443.0,33437.0,0.24057544]
[1625489251084,0.8783744,33443.0,33437.0,0.29957544]
[1625489251280,0.34247303,33441.0,33437.0,0.29957544]
[1625489251630,0.24057544,33438.0,33437.0,0.29957544]
[1625489259452,0.58405773,33438.0,33437.0,0.29957544]
[1625489260855,0.58405773,33438.0,33437.0,0.24057544]
[1625489260955,0.24057544,33438.0,33437.0,0.24057544]
[1625489261405,0.58467246,33438.0,33437.0,0.24057544]
[1625489261657,0.58467246,33438.0,33437.0,0.29957544]
[1625489261776,0.58467246,33438.0,33437.0,0.24057544]
[1625489261868,0.24057544,33438.0,33437.0,0.29957544]
[1625489261961,0.24057544,33438.0,33437.0,0.35857544]
[1625489262411,0.24057544,33438.0,33437.0,0.29957544]
[1625489263273,0.34562586,33442.0,33437.0,0.35857544]
[1625489263381,0.34562586,33442.0,33437.0,0.69820544]
[1625489263569,0.34562586,33442.0,33438.0,0.00403175]
[1625489263671,0.34562586,33442.0,33438.0,0.06303175]
[1625489263764,0.34565285,33444.0,33441.0,0.48115088]
[1625489263863,0.34565285,33444.0,33441.0,0.54015088]
[1625489264065,0.34565285,33444.0,33441.0,0.48115088]
[1625489264165,0.69284631,33443.0,33441.0,0.59915088]
[1625489264565,0.34655341,33442.0,33441.0,0.59915088]
[1625489264865,0.0770826,33444.0,33441.0,0.59915088]
[1625489265165,0.0770826,33444.0,33442.0,0.00403139]
[1625489265264,0.0770826,33444.0,33442.0,0.12203139]
[1625489265466,3.01138663,33451.0,33442.0,0.12203139]
[1625489265564,1.45250243,33451.0,33442.0,0.12203139]
[1625489265764,1.45250243,33451.0,33443.0,0.00403131]
[1625489265865,0.17323859,33446.0,33443.0,0.12203131]
[1625489266314,0.17323859,33446.0,33444.0,0.00403122]
[1625489266414,0.17323859,33446.0,33444.0,0.12203122]
[1625489266516,0.17323859,33446.0,33444.0,0.118]
[1625489266715,1.21205223,33451.0,33444.0,0.118]
[1625489266820,2.1224621,33452.0,33444.0,0.40924]
[1625489266919,2.1224621,33452.0,33445.0,0.5]
[1625489267019,1.0823621,33452.0,33445.0,1.0]
[1625489267116,0.1965621,33452.0,33445.0,1.12202996]
[1625489267217,1.27348381,33455.0,33452.0,0.059]
[1625489267339,0.68178381,33455.0,33452.0,0.26651]
[1625489267466,0.9305,33478.0,33453.0,0.5]
[1625489267467,1.2209059,33463.0,33453.0,0.5]
[1625489267566,1.2209059,33463.0,33453.0,0.559]
[1625489267667,1.2209059,33463.0,33461.0,4.7446]
[1625489267767,1.2209059,33463.0,33462.0,1.46230176]
[1625489267869,1.0881059,33463.0,33462.0,1.52130176]
[1625489267970,0.7082059,33463.0,33462.0,1.52130176]
[1625489268169,0.7082059,33463.0,33462.0,1.52532999]
[1625489268270,0.6505059,33463.0,33462.0,1.52532999]
[1625489268573,0.9305,33478.0,33462.0,1.52532999]
[1625489268672,0.9305,33478.0,33462.0,1.52130176]
[1625489269273,0.9305,33478.0,33463.0,0.00402762]
[1625489269374,0.9305,33478.0,33463.0,0.06302762]
[1625489269722,0.9305,33478.0,33477.0,0.96230176]
[1625489269823,0.9305,33478.0,33477.0,1.23056176]
[1625489271881,0.9305,33478.0,33477.0,0.96230176]
[1625489272431,0.057,33488.0,33477.0,1.32591176]
[1625489272530,0.059,33488.0,33477.0,1.38491176]
[1625489273030,0.059,33488.0,33487.0,4.5096]
[1625489273133,0.059,33488.0,33487.0,4.82754]
[1625489273781,0.059,33488.0,33487.0,5.54926632]
[1625489275086,0.059,33488.0,33487.0,5.23132632]
[1625489275739,1.55750563,33493.0,33487.0,5.23132632]
[1625489275836,0.059,33493.0,33487.0,5.23132632]
[1625489276339,1.79949967,33496.0,33487.0,5.23132632]
[1625489276537,1.85849967,33496.0,33487.0,5.23132632]
[1625489276740,0.29957544,33496.0,33487.0,5.23132632]
[1625489277040,1.55883354,33497.0,33487.0,5.23132632]
[1625489277170,1.55883354,33497.0,33487.0,5.29032632]
[1625489277347,1.55883354,33497.0,33487.0,5.34932632]
[1625489277840,0.057,33502.0,33496.0,0.72172632]
[1625489277940,1.79974392,33503.0,33496.0,0.94401632]
[1625489278041,0.059,33502.0,33496.0,0.94401632]
[1625489278141,0.118,33502.0,33496.0,0.94401632]
[1625489279841,0.118,33502.0,33501.0,0.24057544]
[1625489280144,0.118,33502.0,33496.0,0.94401632]
[1625489280644,0.118,33502.0,33496.0,1.00301632]
[1625489280745,1.55536487,33505.0,33496.0,1.06201632]
[1625489280844,1.55536487,33505.0,33496.0,1.00301632]
[1625489280946,0.059,33502.0,33496.0,0.72172632]
[1625489281046,0.44226,33502.0,33496.0,0.72172632]
[1625489281845,0.24057544,33497.0,33496.0,0.72172632]
[1625489281946,0.29957544,33497.0,33496.0,0.72172632]
[1625489282046,0.35857544,33497.0,33496.0,0.72172632]
[1625489282150,0.35857544,33497.0,33488.0,0.24057544]
[1625489283902,0.48115088,33489.0,33488.0,0.24057544]
[1625489283999,0.86060088,33489.0,33488.0,0.24057544]
[1625489284100,0.91960088,33489.0,33488.0,0.24057544]
[1625489284852,0.91960088,33489.0,33484.0,0.24057544]
[1625489285553,0.91960088,33489.0,33480.0,0.24057544]
[1625489285852,0.48115088,33481.0,33480.0,0.18157544]
[1625489285951,0.78399088,33481.0,33480.0,0.18157544]
[1625489286052,0.84299088,33481.0,33477.0,0.24057544]
[1625489286754,0.78399088,33481.0,33477.0,0.18157544]
[1625489286853,0.72499088,33481.0,33477.0,0.12257544]
[1625489286953,0.72499088,33481.0,33470.0,0.24057544]
[1625489287053,0.84299088,33481.0,33470.0,0.24057544]
[1625489287258,2.04409996,33481.0,33470.0,0.24057544]
[1625489287354,2.04409996,33481.0,33461.0,4.7446]
[1625489287454,2.10109996,33481.0,33461.0,4.7446]
[1625489287853,0.48115088,33462.0,33461.0,4.7446]
[1625489287954,0.70614088,33462.0,33460.0,0.24057544]
[1625489288158,0.76514088,33462.0,33460.0,0.24057544]
[1625489288963,0.76514088,33462.0,33454.0,0.24057544]
[1625489289065,0.76514088,33462.0,33454.0,0.35857544]
[1625489289365,0.76514088,33462.0,33454.0,0.29957544]
[1625489289766,0.76514088,33462.0,33454.0,0.24057544]
[1625489289863,0.48115088,33455.0,33454.0,0.24057544]
[1625489289964,0.75187088,33455.0,33454.0,0.24057544]
[1625489290063,0.81087088,33455.0,33454.0,0.24057544]
[1625489290665,0.75187088,33455.0,33454.0,0.24057544]
[1625489291119,0.48115088,33455.0,33454.0,0.24057544]
[1625489291767,0.48115088,33455.0,33454.0,0.35857544]
[1625489292171,0.48115088,33455.0,33454.0,0.29957544]
[1625489294778,0.24057544,33455.0,33454.0,0.29957544]
[1625489295388,0.24057544,33455.0,33454.0,0.35857544]
[1625489296637,0.24057544,33455.0,33454.0,0.36260029]
[1625489297087,0.48115088,33462.0,33454.0,0.58724029]
[1625489297182,0.057,33468.0,33454.0,0.58724029]
[1625489297286,0.08565786,33472.0,33454.0,0.58724029]
[1625489297432,0.08565786,33472.0,33455.0,0.00403494]
[1625489297543,0.08565786,33472.0,33455.0,0.12203494]
[1625489297635,0.08581219,33477.0,33455.0,0.12203494]
[1625489297941,0.24057544,33473.0,33472.0,0.24057544]
[1625489298052,0.24057544,33473.0,33472.0,0.57475544]
[1625489300940,0.24057544,33477.0,33472.0,0.57475544]
[1625489301889,0.24057544,33477.0,33476.0,0.24057544]
[1625489302090,0.24057544,33477.0,33476.0,0.29957544]
[1625489302992,1.16347544,33480.0,33476.0,0.29957544]
[1625489303190,1.16347544,33480.0,33476.0,4.60577544]
[1625489303394,1.16347544,33480.0,33476.0,4.66477544]
[1625489303943,1.16347544,33480.0,33479.0,0.24057544]
[1625489304043,1.16347544,33480.0,33479.0,0.35857544]
[1625489305800,1.16347544,33480.0,33479.0,0.24057544]
[1625489306601,1.22247544,33480.0,33479.0,0.24057544]
[1625489306703,1.30871958,33480.0,33479.0,0.24057544]
[1625489307003,1.36771958,33480.0,33479.0,0.24057544]
[1625489307101,1.79775703,33480.0,33479.0,0.24057544]
[1625489307303,1.73875703,33480.0,33479.0,0.24057544]
[1625489307401,1.79775703,33480.0,33479.0,0.24057544]
[1625489307601,2.83015096,33480.0,33479.0,0.24057544]
[1625489308304,4.03446597,33480.0,33479.0,0.24057544]
[1625489309407,4.28443597,33480.0,33479.0,0.24057544]
[1625489311461,4.03446597,33480.0,33479.0,0.24057544]
[1625489311562,3.91646597,33480.0,33479.0,0.24057544]
[1625489311963,3.91646597,33480.0,33479.0,0.29957544]
[1625489312062,1.67975703,33480.0,33479.0,0.29957544]
[1625489312466,1.25006195,33480.0,33479.0,0.29957544]
[1625489312816,1.16347544,33480.0,33479.0,0.29957544]
[1625489313352,1.44278544,33480.0,33479.0,0.29957544]
[1625489313621,1.96166148,33480.0,33479.0,0.29957544]
[1625489315322,1.68235148,33480.0,33479.0,0.35857544]
[1625489315422,1.68235148,33480.0,33479.0,0.29957544]
[1625489315523,1.68235148,33480.0,33479.0,0.35857544]
[1625489315623,1.16347544,33480.0,33479.0,0.64442544]
[1625489317328,1.16347544,33480.0,33479.0,0.35857544]
[1625489318152,1.16347544,33480.0,33479.0,0.29957544]
[1625489318829,1.25015815,33480.0,33479.0,0.35857544]
[1625489319481,1.46261815,33480.0,33479.0,0.29957544]
[1625489319933,1.89597562,33480.0,33479.0,0.29957544]
[1625489321083,1.89597562,33480.0,33479.0,0.24057544]
[1625489321735,2.937411,33480.0,33479.0,0.24057544]
[1625489323287,1.89597562,33480.0,33479.0,0.24057544]
[1625489323839,2.93893363,33480.0,33479.0,0.24057544]
[1625489324845,2.93893363,33480.0,33479.0,0.24460669]
[1625489324971,2.93893363,33480.0,33479.0,0.30360669]
[1625489325259,2.93893363,33480.0,33479.0,0.36260669]
[1625489325445,1.46309616,33480.0,33479.0,0.36260669]
[1625489325549,1.25063616,33480.0,33479.0,0.36260669]
[1625489326495,1.25063616,33480.0,33479.0,0.30360669]
[1625489327052,1.16347544,33480.0,33479.0,0.39146905]
[1625489328249,1.25077374,33480.0,33479.0,0.39146905]
[1625489329553,1.16347544,33480.0,33479.0,0.39146905]
[1625489329752,1.16347544,33480.0,33479.0,0.45046905]
[1625489329952,0.9229,33480.0,33479.0,0.45046905]
[1625489330053,0.9229,33480.0,33479.0,0.69104449]
[1625489330203,1.0102082,33480.0,33479.0,0.69104449]
[1625489330603,0.9229,33480.0,33479.0,2.18448465]
[1625489330717,0.9229,33480.0,33479.0,2.88728577]
[1625489334720,1.14251,33480.0,33479.0,2.88728577]
[1625489335420,1.14251,33480.0,33479.0,1.83308409]
[1625489339480,1.14251,33480.0,33479.0,4.11634628]
[1625489340085,1.14251,33480.0,33479.0,2.88689741]
[1625489343736,1.14251,33480.0,33479.0,1.83308409]
[1625489343889,1.08351,33480.0,33479.0,1.77408409]
[1625489345390,1.08351,33480.0,33479.0,1.83308409]
[1625489345693,1.08351,33480.0,33479.0,1.77408409]
[1625489346001,1.08351,33480.0,33479.0,0.54418213]
[1625489346292,1.38308544,33480.0,33479.0,0.54418213]
[1625489346695,2.59902288,33480.0,33479.0,0.54418213]
[1625489347145,3.64072739,33480.0,33479.0,0.54418213]
[1625489347244,3.64072739,33480.0,33479.0,0.48518213]
[1625489347494,3.58172739,33480.0,33479.0,0.54418213]
[1625489347844,3.58172739,33480.0,33479.0,0.60318213]
[1625489347945,3.58172739,33480.0,33479.0,0.54418213]
[1625489350909,4.79791186,33480.0,33479.0,0.54418213]
[1625489355625,6.18904295,33480.0,33479.0,0.63228577]
[1625489356927,4.79791186,33480.0,33479.0,0.54418213]
[1625489357327,6.18861378,33480.0,33479.0,0.63229285]
[1625489357928,6.18861378,33480.0,33479.0,0.54418213]
[1625489359151,6.18861378,33480.0,33479.0,1.77831006]
[1625489359632,4.79791186,33480.0,33479.0,1.77831006]
[1625489360033,4.55733642,33480.0,33479.0,1.77831006]
[1625489360135,4.55733642,33480.0,33479.0,2.8361702]
[1625489361386,4.55733642,33480.0,33479.0,1.77831006]
[1625489363943,5.95177628,33480.0,33479.0,1.77831006]
[1625489364043,5.95177628,33480.0,33479.0,1.83731006]
[1625489364256,5.95177628,33480.0,33479.0,1.77831006]
[1625489364369,4.55733642,33480.0,33479.0,2.10485006]
[1625489364474,4.55733642,33480.0,33479.0,2.16385006]
[1625489364648,3.34115195,33480.0,33479.0,4.45604019]
[1625489365195,2.29944744,33480.0,33479.0,4.45604019]
[1625489365294,2.07983744,33480.0,33479.0,4.45604019]
[1625489365596,2.07983744,33480.0,33479.0,5.86655306]
[1625489366597,2.07983744,33480.0,33479.0,4.45604019]
[1625489366998,2.07983744,33480.0,33479.0,5.86654677]
[1625489371359,3.12731467,33480.0,33479.0,5.86654677]
[1625489371456,3.38079467,33480.0,33479.0,5.80754677]
[1625489371910,3.38079467,33480.0,33479.0,5.54000677]
[1625489372007,3.38079467,33480.0,33479.0,5.48100677]
[1625489372657,3.38079467,33480.0,33479.0,4.07050019]
[1625489373021,4.60152027,33480.0,33479.0,4.07050019]
[1625489373238,4.66052027,33480.0,33479.0,4.07050019]
[1625489373329,4.66052027,33480.0,33479.0,4.01150019]
[1625489373535,7.62158529,33480.0,33479.0,0.5734498]
[1625489373646,7.68058529,33480.0,33479.0,0.33287436]
[1625489373860,7.69609525,33480.0,33479.0,0.33287436]
[1625489374161,7.69609525,33480.0,33479.0,0.24460669]
[1625489374611,8.17724613,33480.0,33479.0,0.24460669]
[1625489376664,8.11824613,33480.0,33479.0,0.24460669]
[1625489376765,8.05924613,33480.0,33479.0,0.24460669]
[1625489376967,8.04373617,33480.0,33479.0,0.24460669]
[1625489377317,6.47612376,33480.0,33479.0,0.33284344]
[1625489377518,6.47612376,33480.0,33479.0,0.39184344]
[1625489377867,6.47612376,33480.0,33479.0,0.83301232]
[1625489378770,6.47612376,33480.0,33479.0,1.5388901]
[1625489378869,6.47612376,33480.0,33479.0,1.7964501]
[1625489378983,6.47612376,33480.0,33479.0,1.8554501]
[1625489379273,6.47612376,33480.0,33479.0,2.91419309]
[1625489379274,5.08267115,33480.0,33479.0,2.91419309]
[1625489379370,4.58861571,33480.0,33479.0,2.91419309]
[1625489379924,4.58861571,33480.0,33479.0,4.14948999]
[1625489380622,4.58861571,33480.0,33479.0,4.39006543]
[1625489386791,4.58861571,33480.0,33479.0,4.33106543]
[1625489386889,4.58861571,33480.0,33479.0,4.27206543]
[1625489387592,5.98183452,33480.0,33479.0,1.97802554]
[1625489387692,5.98183452,33480.0,33479.0,1.72046554]
[1625489390298,6.28637452,33480.0,33479.0,1.72046554]
[1625489391403,6.28637452,33480.0,33479.0,1.36762161]
[1625489391801,6.28637452,33480.0,33479.0,1.01458776]
[1625489392203,6.28637452,33480.0,33479.0,0.83821981]
[1625489393206,6.28637452,33480.0,33479.0,1.3677721]
[1625489393605,6.28637452,33480.0,33479.0,1.72083827]
[1625489395763,6.28637452,33480.0,33479.0,1.77983827]
[1625489395860,5.98183452,33480.0,33479.0,1.77983827]
[1625489396111,5.98183452,33480.0,33479.0,2.83905177]
[1625489396663,5.98183452,33480.0,33479.0,2.78005177]
[1625489397412,5.98183452,33480.0,33479.0,1.72083827]
[1625489397512,6.25763452,33480.0,33479.0,1.72083827]
[1625489397813,7.82422026,33480.0,33479.0,0.92657102]
[1625489398563,7.82422026,33480.0,33479.0,0.57345991]
[1625489399113,7.88322026,33480.0,33479.0,0.57345991]
[1625489399565,7.88322026,33480.0,33479.0,0.92659135]
[1625489400367,7.88322026,33480.0,33479.0,0.57345991]
[1625489400467,7.88322026,33480.0,33479.0,1.01486928]
[1625489400567,7.82422026,33480.0,33479.0,1.01486928]
[1625489401117,6.25763452,33480.0,33479.0,1.72110185]
[1625489401216,5.98183452,33480.0,33479.0,1.72110185]
[1625489402267,5.98183452,33480.0,33479.0,3.02850223]
[1625489402567,5.98183452,33480.0,33479.0,1.96917185]
[1625489402967,5.98183452,33480.0,33479.0,3.02848968]
[1625489403620,5.74125908,33480.0,33479.0,3.02848968]
[1625489404522,5.74125908,33480.0,33479.0,4.26453496]
[1625489406283,4.34804027,33480.0,33479.0,4.26453496]
[1625489406479,4.34804027,33480.0,33479.0,4.32353496]
[1625489406780,5.74634819,33480.0,33479.0,4.32353496]
[1625489408382,4.34804027,33480.0,33479.0,4.32353496]
[1625489408784,4.34804027,33480.0,33479.0,4.38253496]
[1625489408894,3.12731467,33480.0,33479.0,5.7949519]
[1625489420519,2.07983744,33480.0,33479.0,5.7949519]
[1625489420973,1.73496951,33480.0,33479.0,7.38305958]
[1625489421473,1.38889311,33480.0,33479.0,7.38305958]
[1625489422676,1.38889311,33480.0,33479.0,5.7949519]
[1625489422975,1.38845378,33480.0,33479.0,5.7949519]
[1625489423377,2.08766715,33480.0,33479.0,5.7949519]
[1625489428996,2.08766715,33480.0,33479.0,5.7359519]
[1625489434864,2.08766715,33480.0,33479.0,9.7862519]
[1625489436717,1.38845378,33480.0,33479.0,9.7862519]
[1625489436814,1.38845378,33480.0,33479.0,11.37455086]
[1625489438419,1.47845378,33480.0,33479.0,11.37455086]
[1625489438520,1.38845378,33480.0,33479.0,11.37455086]
[1625489438820,1.38845378,33480.0,33479.0,11.38595279]
[1625489438970,1.12768574,33480.0,33479.0,11.38595279]
[1625489439520,1.47918975,33480.0,33479.0,11.38595279]
[1625489440472,1.12768574,33480.0,33479.0,11.38595279]
[1625489440922,1.12768574,33480.0,33479.0,11.39479892]
[1625489441625,0.8639,33480.0,33479.0,11.39479892]
[1625489444430,0.8639,33480.0,33479.0,11.38595279]
[1625489444931,0.8639,33480.0,33479.0,11.38192154]
[1625489445181,0.8639,33480.0,33479.0,11.38595803]
[1625489447235,0.8639,33480.0,33479.0,11.38192154]
[1625489447537,0.8639,33480.0,33479.0,11.39480398]
[1625489452341,0.8639,33480.0,33479.0,11.38595792]
[1625489454493,0.8639,33480.0,33479.0,11.3948038]
[1625489455099,0.8639,33480.0,33479.0,11.38595792]
[1625489457145,0.8639,33480.0,33479.0,11.44495792]
[1625489458951,0.8639,33480.0,33479.0,11.38595792]
[1625489459050,0.8639,33480.0,33479.0,11.44495792]
[1625489461506,0.8639,33480.0,33479.0,11.38595792]
[1625489463263,0.95188277,33480.0,33479.0,11.38595792]
[1625489463563,1.19443277,33480.0,33479.0,11.38595792]
[1625489464818,1.37021361,33480.0,33479.0,11.38595792]
[1625489465369,1.63537202,33480.0,33479.0,11.38595792]
[1625489465771,1.63537202,33480.0,33479.0,7.08758792]
[1625489466118,1.63537202,33480.0,33479.0,7.07618599]
[1625489466371,1.63537202,33480.0,33479.0,5.42888703]
[1625489466372,4.63701922,33480.0,33479.0,5.42888703]
[1625489467124,4.63701922,33480.0,33479.0,4.94773615]
[1625489467722,4.63701922,33480.0,33479.0,5.66946247]
[1625489468425,4.72721922,33480.0,33479.0,5.66946247]
[1625489468525,4.63701922,33480.0,33479.0,5.66946247]
[1625489468826,4.69601922,33480.0,33479.0,5.66946247]
[1625489470577,4.63701922,33480.0,33479.0,5.66946247]
[1625489470729,6.04961496,33480.0,33479.0,4.25704553]
[1625489470829,6.10861496,33480.0,33479.0,4.25704553]
[1625489470930,6.04961496,33480.0,33479.0,4.25704553]
[1625489473034,6.10861496,33480.0,33479.0,4.25704553]
[1625489474990,6.04961496,33480.0,33479.0,4.25704553]
[1625489477443,6.10861496,33480.0,33479.0,4.25704553]
[1625489478646,6.04961496,33480.0,33479.0,4.25704553]
[1625489479046,4.63701922,33480.0,33479.0,4.25704553]
[1625489481200,4.63701922,33480.0,33479.0,5.66877112]
[1625489482105,4.63701922,33480.0,33479.0,5.72777112]
[1625489482757,4.63701922,33480.0,33479.0,5.66877112]
[1625489482861,3.40139059,33480.0,33479.0,5.66877112]
[1625489482957,3.40139059,33480.0,33479.0,5.72777112]
[1625489486513,3.40139059,33480.0,33479.0,6.05818112]
[1625489489020,3.40139059,33480.0,33479.0,5.72777112]
[1625489489871,4.63396387,33480.0,33479.0,5.72777112]
[1625489489970,4.63396387,33480.0,33479.0,5.66877112]
[1625489490973,3.40139059,33480.0,33479.0,5.66877112]
[1625489491072,3.40139059,33480.0,33479.0,5.72777112]
[1625489493375,3.40139059,33480.0,33479.0,5.66877112]
[1625489493576,4.63327978,33480.0,33479.0,5.66877112]
[1625489494628,3.40139059,33480.0,33479.0,5.66877112]
[1625489495930,4.6337136,33480.0,33479.0,5.66877112]
[1625489496031,4.6337136,33480.0,33479.0,5.72777112]
[1625489497185,3.40139059,33480.0,33479.0,5.72777112]
[1625489497984,4.63349784,33480.0,33479.0,5.72777112]
[1625489498939,3.40139059,33480.0,33479.0,5.72777112]
[1625489500841,3.40139059,33480.0,33479.0,5.78677112]
[1625489500940,3.40139059,33480.0,33479.0,5.72777112]
[1625489502946,4.63295281,33480.0,33479.0,4.31604553]
[1625489503397,4.63295281,33480.0,33479.0,5.72747994]
[1625489505102,3.40139059,33480.0,33479.0,5.72747994]
[1625489505601,4.63317784,33480.0,33479.0,5.72747994]
[1625489505903,4.63317784,33480.0,33479.0,5.78647994]
[1625489506002,3.40139059,33480.0,33479.0,5.78647994]
[1625489506452,3.40139059,33480.0,33479.0,5.72747994]
[1625489506653,4.63342316,33480.0,33479.0,5.72747994]
[1625489506752,4.69242316,33480.0,33479.0,5.72747994]
[1625489507358,4.69242316,33480.0,33479.0,4.31604553]
[1625489508761,4.63342316,33480.0,33479.0,4.31604553]
[1625489510915,4.63342316,33480.0,33479.0,4.37504553]
[1625489511318,4.63342316,33480.0,33479.0,4.31604553]
[1625489511622,4.63342316,33480.0,33479.0,5.72795145]
[1625489518688,6.04319258,33480.0,33479.0,5.72795145]
[1625489521797,6.04319258,33480.0,33479.0,5.99385145]
[1625489521896,5.80064258,33480.0,33479.0,5.99385145]
[1625489522461,5.80064258,33480.0,33479.0,6.05285145]
[1625489522565,2.09970512,33480.0,33479.0,7.65473475]
[1625489522745,2.09970512,33480.0,33479.0,7.663581]
[1625489523055,1.39355598,33480.0,33479.0,7.663581]
[1625489523500,1.12851085,33480.0,33479.0,7.663581]
[1625489523698,1.12851085,33480.0,33479.0,7.65216105]
[1625489523949,1.12851085,33480.0,33479.0,7.66357864]
[1625489524251,0.8639,33480.0,33479.0,9.43059939]
[1625489526152,0.8639,33480.0,33479.0,7.66357864]
[1625489526452,0.8639,33480.0,33479.0,7.65473239]
[1625489526552,0.8639,33480.0,33479.0,9.42084462]
[1625489526751,0.8639,33480.0,33479.0,9.4296901]
[1625489527253,0.8639,33480.0,33479.0,7.66357787]
[1625489527553,0.8639,33480.0,33479.0,7.65473239]
[1625489528756,0.8639,33480.0,33479.0,9.42024641]
[1625489529157,0.8639,33480.0,33479.0,7.65473239]
[1625489533519,0.8639,33480.0,33479.0,7.59573239]
[1625489533619,0.8639,33480.0,33479.0,7.32983239]
[1625489533821,1.74510887,33480.0,33479.0,7.32983239]
[1625489534169,1.74510887,33480.0,33479.0,7.3184148]
[1625489534270,1.39259009,33480.0,33479.0,7.3184148]
[1625489534519,1.39259009,33480.0,33479.0,7.3774148]
[1625489534723,2.09771477,33480.0,33479.0,7.3774148]
[1625489535122,2.09771477,33480.0,33479.0,7.3184148]
[1625489536373,4.39249337,33480.0,33479.0,5.72795145]
[1625489540634,4.39249337,33480.0,33479.0,4.25704553]
[1625489540885,5.80475674,33480.0,33479.0,4.25704553]
[1625489541235,5.80475674,33480.0,33479.0,3.02100025]
[1625489542135,6.04533218,33480.0,33479.0,2.78042481]
[1625489542538,6.04533218,33480.0,33478.0,1.23543993]
[1625489542836,10.83163218,33480.0,33478.0,1.23543993]
[1625489542938,10.83163218,33480.0,33477.0,1.23549503]
[1625489543338,10.83163218,33480.0,33477.0,1.29449503]
[1625489543438,10.83163218,33480.0,33478.0,0.0040126]
[1625489543540,5.89077544,33480.0,33478.0,0.0040126]
[1625489543992,2.64642651,33479.0,33478.0,0.0040126]
[1625489544142,2.88700195,33479.0,33478.0,0.0040126]
[1625489544443,2.88700195,33479.0,33478.0,1.23934013]
[1625489544896,2.88700195,33479.0,33478.0,0.0040126]
[1625489548208,2.88700195,33479.0,33478.0,1.23916225]
[1625489550966,2.88700195,33479.0,33478.0,0.0040126]
[1625489552467,2.88700195,33479.0,33478.0,1.23869954]
[1625489552819,2.88700195,33479.0,33478.0,0.0040126]
[1625489553721,2.88700195,33479.0,33478.0,1.23810735]
[1625489554523,2.88700195,33479.0,33478.0,0.0040126]
[1625489554625,3.20998195,33479.0,33478.0,0.0040126]
[1625489558488,0.56355544,33479.0,33478.0,0.0040126]
[1625489558586,3.20072252,33479.0,33478.0,0.0040126]
[1625489560694,1.79424513,33479.0,33478.0,0.0040126]
[1625489560795,1.79424513,33479.0,33478.0,0.0630126]
[1625489564853,1.79424513,33479.0,33478.0,0.0040126]
[1625489567160,1.79424513,33479.0,33474.0,4.1389]
[1625489567264,1.85324513,33479.0,33474.0,0.059]
[1625489567384,1.85324513,33479.0,33472.0,1.58685531]
[1625489567614,1.91224513,33479.0,33472.0,1.58685531]
[1625489567715,1.91224513,33479.0,33473.0,0.00400972]
[1625489567916,1.57677925,33477.0,33473.0,0.00400972]
[1625489568015,1.63577925,33477.0,33473.0,0.00400972]
[1625489568217,1.69477925,33477.0,33467.0,0.01285732]
[1625489568317,0.48115088,33468.0,33467.0,0.01285732]
[1625489568417,0.81617088,33468.0,33467.0,0.01285732]
[1625489568516,0.81617088,33468.0,33464.0,1.58761264]
[1625489568617,0.81617088,33468.0,33465.0,0.29957544]
[1625489568719,0.81617088,33468.0,33465.0,0.24057544]
[1625489568819,0.81617088,33468.0,33466.0,0.00401046]
[1625489569769,0.87517088,33468.0,33466.0,0.00401046]
[1625489570773,0.0894,33467.0,33466.0,0.00401046]
[1625489570873,0.0894,33467.0,33458.0,0.24057544]
[1625489570972,0.1484,33467.0,33458.0,0.24057544]
[1625489571072,0.2074,33467.0,33458.0,0.24057544]
[1625489571275,0.50514963,33459.0,33458.0,0.24057544]
[1625489571372,0.84290963,33459.0,33458.0,0.24057544]
[1625489571574,0.84290963,33459.0,33458.0,0.24458221]
[1625489571876,0.42519719,33459.0,33458.0,0.24458221]
[1625489572225,0.59957098,33459.0,33458.0,0.24458221]
[1625489572324,1.08072186,33459.0,33458.0,0.24458221]
[1625489572633,1.08072186,33459.0,33458.0,1.36035314]
[1625489573075,0.81891088,33459.0,33458.0,1.36035314]
[1625489573274,0.81891088,33459.0,33458.0,1.30135314]
[1625489573876,0.90609981,33459.0,33458.0,1.30135314]
[1625489574725,1.08029191,33459.0,33458.0,1.30135314]
[1625489575828,1.08029191,33459.0,33458.0,1.36035314]
[1625489575929,0.90609981,33459.0,33458.0,0.30358221]
[1625489576179,0.90609981,33459.0,33458.0,0.24458221]
[1625489576280,0.81891088,33459.0,33458.0,0.24458221]
[1625489576731,0.90600352,33459.0,33458.0,0.24458221]